Workbook

Sheet 汇总 (hidden)
C1: 出口厄瓜多尔物资清单
A2: 序号 | B2: 英文名称 | C2: 中文名称 | D2: 规格型号 | E2: 单位 | F2: 数量 | G2: 净重（吨） | H2: 毛重（吨） | I2: 件数 | J2: 长×宽×高（m） | K2: 体积（m3) | L2: 单价 | M2: 金额
A3: 1 | C3: 钢构件 | E3: 吨 | F3: 173.667 | G3: 173.667 | H3: 173.667 | J3: 见明细清单 | K3: 401.863 | L3: 8010 | M3: 1391072.67 | N3: =L3*F3 -> 1391072.67
A4: 2 | B4: steel structure type C | C4: 镀锌C型钢 | D4: C100*50*15*2mm | E4: 吨 | F4: 14.202 | G4: 14.202 | H4: 14.202 | I4: 7 | J4: 见明细清单 | K4: 13.742 | L4: 8010 | M4: 113758.02 | N4: 113758.02
A5: 3 | B5: Color Steel plate | C5: 彩钢瓦 | D5: 0.4mm海蓝色 | E5: 吨 | F5: 32.363 | G5: 32.363 | H5: 36.063 | I5: 4 | J5: 1.10*1.4*11 | K5: 67.76 | L5: 11925 | M5: 385893.00 | N5: 385928.775
A6: 4 | C6: 栓钉 | D6: φ16×90 | E6: 支 | F6: 13548 | G6: 1.92 | H6: 2.86 | I6: 1 | J6: 1*1*2 | K6: 2 | L6: 1.4 | M6: 18967.27 | N6: 18967.26689
A7: 5 | C7: 自攻钉 | D7: φ5.5×40，带橡胶防水垫圈 | E7: 支 | F7: 30435 | G7: 0.3 | L7: 0.1 | M7: 3043.50 | N7: 3043.502857
A8: 6 | C8: 拉铆钉 | D8: φ5×16 | E8: 支 | F8: 11573 | G8: 0.03 | L8: 0.1 | M8: 1157.29 | N8: 1157.286027
C9: 宿舍及食堂清单图纸 | D9: 宿舍及食堂清单图纸 | E9: 盒 | F9: 1 | G9: 5
C10: 合计 | E10: 元 | M10: 1913891.75 | N10: =SUM(N3:N8) -> 1913927.521

Sheet 清单 (hidden)
D1: 第 批出口厄瓜多尔物资清单
A2: 序号 | B2: 英文名称 | C2: 中文名称 | D2: 规格型号 | E2: 单位 | F2: 数量 | G2: 单价 | H2: 总金额 | I2: 箱号 | J2: 件数 | K2: 发货状态 | L2: 单重（kg) | M2: 净重（kg） | N2: 毛重 （kg） | O2: 长×宽×高（m） | P2: 体积（m3) | Q2: HS编码
A3: 1 | C3: 3.6m平台梁-1 | D3: 口250*150*4 | E3: 根 | F3: 28 | L3: 41.8 | M3: 1170.4 | O3: 1.9*0.25*0.15 | P3: 2.00 | R3: 0:品牌类型;1:出口享惠情况;2:织造方法：机制;3:种类：工作服;4:类别：男式;5:成分含量:全棉防静电;6:品牌：无;7:无;8:GTIN;9:CAS;
A4: 2 | C4: 3.6m平台梁-2 | D4: 口250*150*4 | E4: 根 | F4: 54 | L4: 100.9 | M4: 5448.6 | O4: 4.1*0.25*0.15 | P4: 8.30 | R4: 0:品牌类型;1:出口享惠情况;2:织造方法：针织;3:成分含量;100%棉4:品牌：无品牌;5:货号：无;6:GTIN;7:CAS;
A5: 3 | C5: 3.6m平台梁-3 | D5: 口100*100*3 | E5: 根 | F5: 2 | L5: 27.4 | M5: 54.8 | O5: 3*0.1*0.1 | P5: 0.06 | R5: 0:品牌类型|1:出口享惠情况|2:结构类型：深沟球轴承|3:品牌：哈轴|4:型号:6206|5:GTIN|6:CAS|7:其他
A6: 4 | C6: 3.6m平台梁-4 | D6: 口250*150*4 | E6: 根 | F6: 6 | L6: 71.4 | M6: 428.4 | O6: 2.9*0.25*0.15 | P6: 0.65
A7: 5 | C7: 3.6m平台梁-5 | D7: 口100*100*3 | E7: 根 | F7: 28 | L7: 17.8 | M7: 498.4 | O7: 1.95*0.1*0.1 | P7: 0.55
A8: 6 | C8: 3.6m平台梁-6 | D8: 口250*150*4 | E8: 根 | F8: 24 | L8: 38.2 | M8: 916.8 | O8: 1.55*0.25*0.15 | P8: 1.40
A9: 7 | C9: 3.6m平台梁-7 | D9: 口250*150*4 | E9: 根 | F9: 80 | L9: 104.6 | M9: 8368 | O9: 4.25*0.25*0.15 | P9: 12.75
A10: 8 | C10: 3.6m平台梁-8 | D10: 口250*150*4 | E10: 根 | F10: 20 | L10: 44.3 | M10: 886 | O10: 1.8*0.15*0.25 | P10: 1.35
A11: 9 | C11: 3.6m平台梁-9 | D11: 口100*100*3 | E11: 根 | F11: 144 | L11: 20.1 | M11: 2894.4 | O11: 2.2*0.1*0.1 | P11: 3.17
A12: 10 | C12: 3.6m平台梁-10 | D12: 口200*100*3 | E12: 根 | F12: 40 | L12: 29.8 | M12: 1192 | O12: 2.15*0.2*0.1 | P12: 1.72
A13: 11 | C13: 3.6m平台梁-11 | D13: 口100*100*3 | E13: 根 | F13: 112 | L13: 18.3 | M13: 2049.6 | O13: 2*0.1*0.1 | P13: 2.24
A14: 12 | C14: 3.6m平台梁-12 | D14: 口100*100*3 | E14: 根 | F14: 36 | L14: 19.6 | M14: 705.6 | O14: 2.15*0.1*0.1 | P14: 0.77
A15: 13 | C15: 3.6m平台梁-13 | D15: 口250*150*4 | E15: 根 | F15: 8 | L15: 75.1 | M15: 600.8 | O15: 3.05*0.25*0.15 | P15: 0.92
A16: 14 | C16: 3.6m平台梁-14 | D16: 口125*100*3 | E16: 根 | F16: 8 | L16: 33.5 | M16: 268 | O16: 3.25*0.125*0.1 | P16: 0.33
A17: 15 | C17: 3.6m平台梁-15 | D17: 口200*100*3 | E17: 根 | F17: 2 | L17: 40.8 | M17: 81.6 | O17: 2.95*0.2*0.1 | P17: 0.12
A18: 16 | C18: 3.6m平台梁-16 | D18: 口250*150*4 | E18: 根 | F18: 4 | L18: 72.6 | M18: 290.4 | O18: 2.95*0.25*0.15 | P18: 0.44
A19: 17 | C19: 3.6m平台梁-17 | D19: 口100*100*3 | E19: 根 | F19: 8 | L19: 27.9 | M19: 223.2 | O19: 3.05*0.1*0.1 | P19: 0.24
A20: 18 | C20: 3.6m平台梁-18 | D20: 口250*150*4 | E20: 根 | F20: 40 | L20: 40.6 | M20: 1624 | O20: 1.65*0.25*0.15 | P20: 2.48
A21: 19 | C21: 3.6m平台梁-19 | D21: 口250*150*4 | E21: 根 | F21: 40 | L21: 102.2 | M21: 4088 | O21: 4.15*0.25*0.15 | P21: 6.23
A22: 20 | C22: 6.66m平台梁-1 | D22: 口200*150*6 | E22: 根 | F22: 56 | L22: 54.1 | M22: 3029.6 | O22: 1.7*0.2*0.15 | P22: 2.86
A23: 21 | C23: 6.66m平台梁-2 | D23: 口200*150*6 | E23: 根 | F23: 32 | L23: 140.1 | M23: 4483.2 | O23: 4.4*0.2*0.15 | P23: 4.22
A24: 22 | C24: 6.66m平台梁-3 | D24: 口200*150*6 | E24: 根 | F24: 6 | L24: 95.5 | M24: 573 | O24: 3*0.2*0.15 | P24: 0.54
A25: 23 | C25: 6.66m平台梁-4 | D25: 口200*150*6 | E25: 根 | F25: 4 | L25: =455.3-L26 -> 264.5 | M25: =1821.2-M26 -> 1058 | O25: 8.3*0.2*0.15 | P25: 1.00
E26: 根 | F26: 4 | L26: =31.8*6 -> 190.8 | M26: =F26*L26 -> 763.2 | O26: 6*0.2*0.15 | P26: =6*0.2*0.15*4 -> 0.72
A27: 24 | C27: 6.66m平台梁-5 | D27: 口200*150*6 | E27: 根 | F27: 48 | L27: 138.5 | M27: 6648 | O27: 4.35*0.2*0.15 | P27: 6.26
A28: 25 | C28: 6.66m平台梁-6 | D28: 口200*150*6 | E28: 根 | F28: 16 | L28: 97.1 | M28: 1553.6 | O28: 3.05*0.2*0.15 | P28: 1.46
A29: 26 | C29: 窗梁-1 | D29: 口150*2 | E29: 根 | F29: 4 | L29: 27 | M29: 108 | O29: 2.9*0.15*0.15 | P29: 0.26
A30: 27 | C30: 窗梁-2 | D30: 口150*2 | E30: 根 | F30: 80 | L30: 17.2 | M30: 1376 | O30: 1.85*0.15*0.15 | P30: 3.33
A31: 28 | C31: 窗梁-3 | D31: 口150*2 | E31: 根 | F31: 8 | L31: 28.3 | M31: 226.4 | O31: 3.05*0.15*0.15 | P31: 0.55
A32: 29 | C32: 钢架-1 | E32: 榀 | F32: 12 | L32: 556.51 | M32: 6678.12 | O32: 11.3*2.207*0.1 | P32: =50.4877734-P33 -> 50.15
E33: 榀 | F33: 24 | L33: =13.85*0.7 -> 9.695 | M33: =L33*F33 -> 232.68 | O33: 0.7*0.2*0.1 | P33: =1.4*0.2*0.1*12 -> 0.336
A34: 30 | C34: 钢架-2 | E34: 榀 | F34: 16 | L34: 191 | M34: 3056 | O34: 6.864*1.553*0.1 | P34: 17.06
A35: 31 | C35: 钢架-3 | E35: 榀 | F35: 8 | L35: 550.9 | M35: 4407.2 | O35: 10.984*2.16*0.1 | P35: 28.47 | R35: =Q35*F35 -> 0
A36: 32 | C36: 钢架-4 | E36: 榀 | F36: 2 | L36: 374.3 | M36: 748.6 | O36: 8.459*2.21*0.1 | P36: 5.61
A37: 33 | C37: 钢架-5 | E37: 榀 | F37: 4 | L37: 303.2 | M37: 1212.8 | O37: 10.166*2.213*0.1 | P37: 13.50
A38: 34 | C38: 钢架-6 | E38: 榀 | F38: 2 | L38: =575.9-L39 -> 556.51 | M38: =L38*F38 -> 1113.02 | O38: 11.3*2.210*0.1 | P38: =8.426067-P39 -> 8.37
E39: 榀 | F39: 2 | L39: =13.85*1.4 -> 19.39 | M39: =L39*F39 -> 38.78 | O39: 1.4*0.2*0.1 | P39: =1.4*0.2*0.1*2 -> 0.056
A40: 35 | C40: 钢梯-1 | E40: 副 | F40: 4 | L40: 289.1 | M40: 1156.4 | O40: 2.617*1.425*0.25 | P40: 3.09
A41: 36 | C41: 钢梯-2 | E41: 副 | F41: 4 | L41: 370.9 | M41: 1483.6 | O41: 3.203*1.425*0.25 | P41: 4.56
A42: 37 | C42: 钢梯-3 | E42: 副 | F42: 2 | L42: 370.8 | M42: 741.6 | O42: 3.203*1.425*0.25 | P42: 2.28
A43: 38 | C43: 钢梯-4 | E43: 副 | F43: 2 | L43: 287.9 | M43: 575.8 | O43: 2.617*1.425*0.25 | P43: 1.86
A44: 39 | C44: 钢梯-5 | E44: 副 | F44: 2 | L44: 293.7 | M44: 587.4 | O44: 2.278*1.910*0.25 | P44: 2.18
A45: 40 | C45: 钢梯平台梁-1 | D45: 口200*100*3 | E45: 根 | F45: 12 | L45: 19.4 | M45: 232.8 | O45: 1.4*0.2*0.1 | P45: 0.34
A46: 41 | C46: 钢梯平台梁-2 | D46: 口250*150*4 | E46: 根 | F46: 4 | L46: 72.6 | M46: 290.4 | O46: 2.95*0.25*0.15 | P46: 0.44
A47: 42 | C47: 钢梯平台梁-3 | D47: 口200*100*3 | E47: 根 | F47: 2 | L47: 20.8 | M47: 41.6 | O47: 1.5*0.2*0.1 | P47: 0.06
A48: 43 | C48: 钢梯平台梁-4 | D48: 口250*150*4 | E48: 根 | F48: 2 | L48: 71.4 | M48: 142.8 | O48: 2.9*0.25*0.15 | P48: 0.22
A49: 44 | C49: 钢梯平台梁-5 | D49: 口250*150*4 | E49: 根 | F49: 2 | L49: 75.1 | M49: 150.2 | O49: 3.05*0.25*0.15 | P49: 0.23
A50: 45 | C50: 钢梯平台梁-6 | D50: 口200*100*3 | E50: 根 | F50: 2 | L50: 20.5 | M50: 41 | O50: 1.479*0.2*0.1 | P50: 0.06
A51: 46 | C51: 钢梯平台梁-7 | D51: 口250*150*4 | E51: 根 | F51: 2 | L51: 76.3 | M51: 152.6 | O51: 3.1*0.25*0.15 | P51: 0.23
A52: 47 | C52: 钢梯平台梁-8 | D52: 口200*100*3 | E52: 根 | F52: 2 | L52: 21.5 | M52: 43 | O52: 1.55*0.2*0.1 | P52: 0.06
A53: 48 | C53: 钢梯平台梁-9 | D53: 口250*150*4 | E53: 根 | F53: 2 | L53: 73.9 | M53: 147.8 | O53: 3*0.25*0.15 | P53: 0.23
A54: 49 | C54: 钢柱-1 | E54: 根 | F54: 12 | L54: 60.1 | M54: 721.2 | O54: 1.514*0.35*0.35 | P54: 2.23
A55: 50 | C55: 钢柱-2 | E55: 根 | F55: 174 | L55: 380.4 | M55: =L55*F55 -> 66189.6 | O55: 6.1*0.4*0.4 | P55: 169.80
A56: 51 | C56: 屋面梁-1 | D56: 口200*100*3 | E56: 根 | F56: 2 | L56: 42.2 | M56: 84.4 | O56: 3.05*0.2*0.1 | P56: 0.12
A57: 52 | C57: 屋面梁-2 | D57: 口200*100*3 | E57: 根 | F57: 4 | L57: 56.7 | M57: 226.8 | O57: 4.091*0.2*0.1 | P57: 0.33
A58: 53 | C58: 屋面梁-3 | D58: 口200*100*3 | E58: 根 | F58: 16 | L58: 10.5 | M58: 168 | O58: 0.771*0.2*0.1 | P58: 0.25
A59: 54 | C59: 屋面梁-4 | D59: 口200*100*3 | E59: 根 | F59: 16 | L59: 10.5 | M59: 168 | O59: 0.771*0.2*0.1 | P59: 0.25
A60: 55 | C60: 屋面梁-5 | D60: 口200*100*3 | E60: 根 | F60: 2 | L60: 56.1 | M60: 112.2 | O60: 4.405*0.2*0.1 | P60: 0.18
A61: 56 | C61: 屋面梁-6 | D61: 口200*100*3 | E61: 根 | F61: 32 | L61: 86.6 | M61: 2771.2 | O61: 6.268*0.2*0.1 | P61: 4.01
A62: 57 | C62: 屋面梁-7 | D62: 口200*100*3 | E62: 根 | F62: 16 | L62: 82.3 | M62: 1316.8 | O62: 6.016*0.2*0.1 | P62: 1.93
A63: 58 | C63: 屋面梁-8 | D63: 口200*100*3 | E63: 根 | F63: 16 | L63: 82.3 | M63: 1316.8 | O63: 6.016*0.2*0.1 | P63: 1.93
A64: 59 | C64: 屋面梁-9 | D64: 口200*100*3 | E64: 根 | F64: 2 | L64: 12.5 | M64: 25 | O64: 0.895*0.2*0.1 | P64: 0.04
A65: 60 | C65: 屋面梁-10 | D65: 口200*100*3 | E65: 根 | F65: 2 | L65: 22 | M65: 44 | O65: 1.631*0.2*0.1 | P65: 0.07
A66: 61 | C66: 屋面梁-11 | D66: 口200*100*3 | E66: 根 | F66: 4 | L66: 120.1 | M66: 480.4 | O66: 8.745*0.2*0.1 | P66: 0.70
A67: 62 | C67: 屋面梁-12 | D67: 口200*100*3 | E67: 根 | F67: 2 | L67: =198-L68 -> 115.2 | M67: =396-M68 -> 230.4 | O67: 8.3*0.2*0.1 | P67: 0.45
E68: 根 | F68: 2 | L68: =13.8*6 -> 82.8 | M68: =L68*F68 -> 165.6 | O68: 6*0.2*0.1 | P68: =6*0.2*0.1 -> 0.12
A69: 63 | C69: 屋面梁-13 | D69: 口200*100*3 | E69: 根 | F69: 8 | L69: 20.9 | M69: 167.2 | O69: 1.59*0.2*0.1 | P69: 0.25
A70: 64 | C70: 屋面梁-14 | D70: 口200*100*3 | E70: 根 | F70: 6 | L70: 23.3 | M70: 139.8 | O70: 1.763*0.2*0.1 | P70: 0.21
A71: 65 | C71: 屋面梁-15 | D71: 口200*100*3 | E71: 根 | F71: 4 | L71: 7.9 | M71: 31.6 | O71: 0.583*0.2*0.1 | P71: 0.05
A72: 66 | C72: 屋面梁-16 | D72: 口200*100*3 | E72: 根 | F72: 4 | L72: 7.9 | M72: 31.6 | O72: 0.583*0.2*0.1 | P72: 0.05
A73: 67 | C73: 屋面梁-17 | D73: 口200*100*3 | E73: 根 | F73: 8 | L73: 123.8 | M73: 990.4 | O73: 8.963*0.2*0.1 | P73: 1.43
A74: 68 | C74: 屋面梁-18 | D74: 口200*100*3 | E74: 根 | F74: 4 | L74: 120.1 | M74: 480.4 | O74: 8.745*0.2*0.1 | P74: 0.70
A75: 69 | C75: 圆管 | D75: φ50*3，L=1167 | E75: 根 | F75: 52 | L75: 3.95 | M75: 205.4 | O75: 1.167*0.05*0.05 | P75: 0.52
A76: 70 | C76: 圆管 | D76: φ50*3，L=6000 | E76: 根 | F76: 9 | L76: 20.2 | M76: 181.8 | O76: 6*0.05*0.05 | P76: 0.18
A77: 71 | C77: 圆管 | D77: φ30*3，L=6000 | E77: 根 | F77: 13 | L77: 11.4 | M77: 148.2 | O77: 6*0.03*0.03 | P77: 0.01
A78: 72 | C78: 扁铁 | D78: 3*100,L=6000 | E78: 根 | F78: 8 | L78: 14.1 | M78: 112.8 | O78: 6*0.1*0.003 | P78: 0.01
A79: 73 | C79: 天沟-1 | E79: 件 | F79: 4 | L79: 18.3 | M79: 73.2 | O79: 8.8*0.2*0.12 | P79: 0.84
A80: 74 | C80: 天沟-2 | E80: 件 | F80: 4 | L80: 18.3 | M80: 73.2 | O80: 8.8*0.2*0.12 | P80: 0.84
A81: 75 | C81: 天沟-3 | E81: 件 | F81: 32 | L81: 12.7 | M81: 406.4 | O81: 6.1*0.2*0.12 | P81: 4.68
A82: 76 | C82: 楼层板-1 | D82: L=1850 | E82: 件 | F82: 48 | L82: 14.16 | M82: =L82*F82 -> 679.7 | O82: 1.85*1.025*0.051 | P82: 0.26
A83: 77 | C83: 楼层板-2 | D83: L=2050 | E83: 件 | F83: 12 | L83: 15.69 | M83: 188.3 | O83: 2.05*1.025*0.051 | P83: 0.24
A84: 78 | C84: 楼层板-3 | D84: L=5350 | E84: 件 | F84: 160 | L84: 40.95 | M84: 6551.6 | O84: 5.35*1.025*0.051 | P84: 1.24
A85: 79 | C85: 楼层板-4 | D85: L=7150 | E85: 件 | F85: 230 | L85: 54.72 | M85: 12586.6 | O85: 7.15*1.025*0.051 | P85: 1.03
A86: 80 | C86: 楼层板-5 | D86: L=6400 | E86: 件 | F86: 28 | L86: 48.98 | M86: 1371.6 | O86: 6.40*1.025*0.051 | P86: 0.41
A87: 81 | C87: 楼层板-6 | D87: L=1875 | E87: 件 | F87: 24 | L87: 14.35 | M87: 344.4 | O87: 1.87*1.025*0.051 | P87: 0.23

Sheet 1
B1: 1包货物清单
A2: 序号 | C2: 中文名称 | D2: 规格型号 | E2: 单位 | F2: 数量 | G2: 单价 | H2: 总金额 | I2: 箱号 | J2: 件数 | K2: 发货状态 | L2: 单重（kg) | M2: 净重（kg） | N2: 长（mm） | O2: 宽（mm） | P2: 高（mm） | Q2: 长×宽×高（m） | R2: 体积（m3)
A3: 1 | B3: NLCB-1 | C3: N楼承板-1 | D3: YX75-230-690-2.3 | F3: 88.0 | L3: 182.72 | M3: =F3*L3 -> 16079.06 | N3: 9200 | O3: 690 | P3: =75+(F3-1)*2.3 -> 275.1 | Q3: 9.2*0.69*0.2751 | R3: =N3*O3*P3/1000000000 -> 1.75
A4: 2 | B4: NLCB-2 | C4: N楼承板-2 | D4: YX75-230-690-2.3 | F4: 2.0 | L4: 183.71 | M4: =F4*L4 -> 367.42 | N4: 9250 | O4: 690 | P4: 77.3 | Q4: 9.25*0.69*0.0773 | R4: =N4*O4*P4/1000000000 -> 0.49
A5: 3 | B5: NLCB-3 | C5: N楼承板-3 | D5: YX75-230-690-2.3 | F5: 112.0 | L5: 130.01 | M5: 14560.77 | N5: 6546 | O5: 690 | P5: 330.3 | Q5: 6.546*0.69*0.3303 | R5: 1.49
A6: 4 | B6: NLCB-4 | C6: N楼承板-4 | D6: YX75-230-690-2.3 | F6: 65.0 | L6: 122.14 | M6: 7939.23 | N6: 6150 | O6: 690 | P6: 222.2 | Q6: 6.15*0.69*0.2222 | R6: 0.94
A7: 5 | B7: NLCB-5 | C7: N楼承板-5 | D7: YX75-230-690-2.3 | F7: 3.0 | L7: 173.20 | M7: 519.61 | N7: 8721 | O7: 690 | P7: 79.6 | Q7: 8.721*0.69*0.0796 | R7: 0.48
A8: 6 | B8: NLCB-6 | C8: N楼承板-6 | D8: YX75-230-690-2.3 | F8: 3.0 | L8: 123.14 | M8: 369.41 | N8: 6200 | O8: 690 | P8: 79.6 | Q8: 6.2*0.69*0.0796 | R8: 0.34
A9: 7 | B9: NLCB-7 | C9: N楼承板-7 | D9: YX75-230-690-2.3 | F9: 23.0 | L9: 120.16 | M9: 2763.59 | N9: 6050 | O9: 690 | P9: 125.6 | Q9: 6.05*0.69*0.1256 | R9: 0.52
A10: 8 | B10: NLCB-8 | C10: N楼承板-8 | D10: YX75-230-690-2.3 | F10: 20.0 | L10: 117.18 | M10: 2343.54 | N10: 5900 | O10: 690 | P10: 118.7 | Q10: 5.9*0.69*0.1187 | R10: 0.48
A11: 9 | B11: NLCB-9 | C11: N楼承板-9 | D11: YX75-230-690-2.3 | F11: 4.0 | L11: 78.75 | M11: 314.99 | N11: 3965 | O11: 690 | P11: 81.9 | Q11: 3.965*0.69*0.0819 | R11: 0.22
A12: 10 | B12: NLCB-10 | C12: N楼承板-10 | D12: YX75-230-690-2.3 | F12: 77.0 | L12: 112.21 | M12: 8640.31 | N12: 5650 | O12: 690 | P12: 249.8 | Q12: 5.65*0.69*0.2498 | R12: 0.97
A13: 11 | B13: NLCB-11 | C13: N楼承板-11 | D13: YX75-230-690-2.3 | F13: 22.0 | L13: 109.23 | M13: 2403.12 | N13: 5500 | O13: 690 | P13: 123.3 | Q13: 5.5*0.69*0.1233 | R13: 0.47
A14: 12 | B14: NLCB-12 | C14: N楼承板-12 | D14: YX75-230-690-2.3 | F14: 11.0 | L14: 151.93 | M14: 1671.26 | N14: 7650 | O14: 690 | P14: 98 | Q14: 7.65*0.69*0.098 | R14: 0.52
A15: 13 | B15: NLCB-13 | C15: N楼承板-13 | D15: YX75-230-690-2.3 | F15: 24.0 | L15: 130.09 | M15: 3122.07 | N15: 6550 | O15: 690 | P15: 127.9 | Q15: 6.55*0.69*0.1279 | R15: 0.58
A16: 14 | B16: NLCB-14 | C16: N楼承板-14 | D16: YX75-230-690-2.3 | F16: 78.0 | L16: 157.04 | M16: 12248.88 | N16: 7907 | O16: 690 | P16: 252.1 | Q16: 7.907*0.69*0.2521 | R16: 1.38
A17: 15 | B17: NLCB-15 | C17: N楼承板-15 | D17: YX75-230-690-2.3 | F17: 4.0 | L17: 155.98 | M17: 623.94 | N17: 7854 | O17: 690 | P17: 81.9 | Q17: 7.854*0.69*0.0819 | R17: 0.44
A18: 16 | B18: NLCB-16 | C18: N楼承板-16 | D18: YX75-230-690-2.3 | F18: 56.0 | L18: 188.26 | M18: 10542.43 | N18: 9479 | O18: 690 | P18: 201.5 | Q18: 9.479*0.69*0.2015 | R18: 1.32
A19: 17 | B19: NLCB-17 | C19: N楼承板-17 | D19: YX75-230-690-2.3 | F19: 10.0 | L19: 38.23 | M19: 382.31 | N19: 1925 | O19: 690 | P19: 95.7 | Q19: 1.925*0.69*0.0957 | R19: 0.13
A20: 18 | B20: NLCB-18 | C20: N楼承板-18 | D20: YX75-230-690-2.3 | F20: 35.0 | L20: 59.38 | M20: 2078.40 | N20: 2990 | O20: 690 | P20: 153.2 | Q20: 2.99*0.69*0.1532 | R20: 0.32
A21: 19 | B21: NLCB-19 | C21: N楼承板-19 | D21: YX75-230-690-2.3 | F21: 35.0 | L21: 71.46 | M21: 2501.03 | N21: 3598 | O21: 690 | P21: 153.2 | Q21: 3.598*0.69*0.1532 | R21: 0.38
A22: 20 | B22: NLCB-20 | C22: N楼承板-20 | D22: YX75-230-690-2.3 | F22: 35.0 | L22: 28.58 | M22: 1000.27 | N22: 1439 | O22: 690 | P22: 153.2 | Q22: 1.439*0.69*0.1532 | R22: 0.15
A23: 21 | B23: NLCB-21 | C23: N楼承板-21 | D23: YX75-230-690-2.3 | F23: 3.0 | L23: 42.12 | M23: 126.37 | N23: 2121 | O23: 690 | P23: 79.6 | Q23: 2.121*0.69*0.0796 | R23: 0.12
A24: 22 | B24: ZB-1 | C24: 折边-1 | D24: PL1.5*2500 | F24: 225 | L24: 9.516 | M24: 2141.1 | N24: 2500 | O24: 50 | P24: 250 | Q24: 2.5*0.05*0.25 | R24: =N24*O24*P24*F24/1000000000 -> 7.031
A25: 23 | B25: ZB-2 | C25: 折边-2 | D25: PL1.5*2500 | F25: 75 | L25: 8.77 | M25: 657.75 | N25: 2500 | O25: 100 | P25: 175 | Q25: 2.5*0.1*0.175 | R25: 3.281
A26: 24 | B26: ZB-3 | C26: 折边-3 | D26: PL1.5*2500 | F26: 68 | L26: 7.28 | M26: 495.04 | N26: 2500 | O26: 50 | P26: 175 | Q26: 2.5*0.05*0.175 | R26: 1.488
A27: 25 | B27: ZB-4 | C27: 折边-4 | D27: PL1.5*2500 | F27: 48 | L27: 10.26 | M27: 492.48 | N27: 2500 | O27: 150 | P27: 175 | Q27: 2.5*0.15*0.175 | R27: 3.150
A28: 26 | B28: 4.5mGGS-1 | C28: 4.5m钢格栅-1 | D28: G403/40/100 | F28: 2 | L28: 169.00 | M28: =L28*F28 -> 338.00 | N28: 1677 | O28: 3120 | P28: 40 | Q28: 1.677*3.12*0.04 | R28: 0.419
A29: 27 | B29: 4.5mGGS-2 | C29: 4.5m钢格栅-2 | D29: G403/40/100 | F29: 1 | L29: 61.05 | M29: =L29*F29 -> 61.05 | N29: 1400 | O29: 1350 | P29: 40 | Q29: 1.4*1.35*0.04 | R29: 0.076
A30: 28 | B30: 4.5mGGS-3 | C30: 4.5m钢格栅-3 | D30: G403/40/100 | F30: 1 | L30: 83.60 | M30: 83.60 | N30: 1810 | O30: 1430 | P30: 40 | Q30: 1.81*1.43*0.04 | R30: 0.104
A31: 29 | B31: 4.5mGGS-4 | C31: 4.5m钢格栅-4 | D31: G403/40/100 | F31: 1 | L31: 114.55 | M31: 114.55 | N31: 2480 | O31: 1430 | P31: 40 | Q31: 2.48*1.43*0.04 | R31: 0.142
A32: 30 | B32: 4.5mGGS-5 | C32: 4.5m钢格栅-5 | D32: G403/40/100 | F32: 1 | L32: 66.51 | M32: 66.51 | N32: 1440 | O32: 1430 | P32: 40 | Q32: 1.44*1.43*0.04 | R32: 0.082
A33: 31 | B33: 4.5mGGS-6 | C33: 4.5m钢格栅-6 | D33: G403/40/100 | F33: 1 | L33: 64.66 | M33: 64.66 | N33: 1430 | O33: 1400 | P33: 40 | Q33: 1.43*1.4*0.04 | R33: 0.080
A34: 32 | B34: 4.5mGGS-7 | C34: 4.5m钢格栅-7 | D34: G403/40/100 | F34: 2 | L34: 181.24 | M34: 362.47 | N34: 1810 | O34: 3100 | P34: 40 | Q34: 1.81*3.1*0.04 | R34: 0.449
A35: 33 | B35: 4.5mGGS-8 | C35: 4.5m钢格栅-8 | D35: G403/40/100 | F35: 8 | L35: 248.32 | M35: 1986.58 | N35: 2480 | O35: 3100 | P35: 40 | Q35: 2.48*3.1*0.04 | R35: 2.460
A36: 34 | B36: 4.5mGGS-9 | C36: 4.5m钢格栅-9 | D36: G403/40/100 | F36: 8 | L36: 144.19 | M36: 1153.50 | N36: 1440 | O36: 3100 | P36: 40 | Q36: 1.44*3.1*0.04 | R36: 1.428
A37: 35 | B37: 4.5mGGS-10 | C37: 4.5m钢格栅-10 | D37: G403/40/100 | F37: 2 | L37: 140.18 | M37: 280.36 | N37: 1400 | O37: 3100 | P37: 40 | Q37: 1.4*3.1*0.04 | R37: 0.347
A38: 36 | B38: 4.5mGGS-11 | C38: 4.5m钢格栅-11 | D38: G403/40/100 | F38: 1 | L38: 78.93 | M38: 78.93 | N38: 1810 | O38: 1350 | P38: 40 | Q38: 1.81*1.35*0.04 | R38: 0.098
A39: 37 | B39: 4.5mGGS-12 | C39: 4.5m钢格栅-12 | D39: G403/40/100 | F39: 1 | L39: 108.14 | M39: 108.14 | N39: 2480 | O39: 1350 | P39: 40 | Q39: 2.48*1.35*0.04 | R39: 0.134
A40: 38 | B40: 4.5mGGS-13 | C40: 4.5m钢格栅-13 | D40: G403/40/100 | F40: 1 | L40: 62.79 | M40: 62.79 | N40: 1440 | O40: 1350 | P40: 40 | Q40: 1.44*1.35*0.04 | R40: 0.078
A41: 39 | B41: 4.5mGGS-14 | C41: 4.5m钢格栅-14 | D41: G403/40/100 | F41: 1 | L41: 116.93 | M41: 116.93 | N41: 1810 | O41: 2000 | P41: 40 | Q41: 1.81*2*0.04 | R41: 0.145
A42: 40 | B42: 4.5mGGS-15 | C42: 4.5m钢格栅-15 | D42: G403/40/100 | F42: 2 | L42: 160.21 | M42: 320.42 | N42: 2480 | O42: 2000 | P42: 40 | Q42: 2.48*2*0.04 | R42: 0.397
A43: 41 | B43: 4.5mGGS-16 | C43: 4.5m钢格栅-16 | D43: G403/40/100 | F43: 2 | L43: 93.02 | M43: 186.05 | N43: 1440 | O43: 2000 | P43: 40 | Q43: 1.44*2*0.04 | R43: 0.230
A44: 42 | B44: 4.5mGGS-17 | C44: 4.5m钢格栅-17 | D44: G403/40/100 | F44: 1 | L44: 90.44 | M44: 90.44 | N44: 1400 | O44: 2000 | P44: 40 | Q44: 1.4*2*0.04 | R44: 0.112
A45: 43 | B45: 4.5mGGS-18 | C45: 4.5m钢格栅-18 | D45: G403/40/100 | F45: 1 | L45: 122.77 | M45: 122.77 | N45: 1810 | O45: 2100 | P45: 40 | Q45: 1.81*2.1*0.04 | R45: 0.152
A46: 44 | B46: 4.5mGGS-19 | C46: 4.5m钢格栅-19 | D46: G403/40/100 | F46: 1 | L46: 168.22 | M46: 168.22 | N46: 2480 | O46: 2100 | P46: 40 | Q46: 2.48*2.1*0.04 | R46: 0.208
A47: 45 | B47: 4.5mGGS-20 | C47: 4.5m钢格栅-20 | D47: G403/40/100 | F47: 1 | L47: 97.68 | M47: 97.68 | N47: 1440 | O47: 2100 | P47: 40 | Q47: 1.44*2.1*0.04 | R47: 0.121
A48: 46 | B48: 4.5mGGS-21 | C48: 4.5m钢格栅-21 | D48: G403/40/100 | F48: 1 | L48: 94.96 | M48: 94.96 | N48: 1400 | O48: 2100 | P48: 40 | Q48: 1.4*2.1*0.04 | R48: 0.118
A49: 47 | B49: 4.5mGGS-22 | C49: 4.5m钢格栅-22 | D49: G403/40/100 | F49: 1 | L49: 153.47 | M49: 153.47 | N49: 1810 | O49: 2625 | P49: 40 | Q49: 1.81*2.625*0.04 | R49: 0.190
A50: 48 | B50: 4.5mGGS-23-1 | C50: 4.5m钢格栅-23-1 | D50: G403/40/100 | F50: 2 | L50: 210.27 | M50: 420.55 | N50: 2625 | O50: 2480 | P50: 40 | Q50: 2.625*2.48*0.04 | R50: 0.521
A51: 49 | B51: 4.5mGGS-23-2 | C51: 4.5m钢格栅-23-2 | D51: G403/40/100 | F51: 1 | L51: 210.27 | M51: 210.27 | N51: 2480 | O51: 2625 | P51: 40 | Q51: 2.48*2.625*0.04 | R51: 0.260
A52: 50 | B52: 4.5mGGS-24-1 | C52: 4.5m钢格栅-24-1 | D52: G403/40/100 | F52: 2 | L52: 122.09 | M52: 244.19 | N52: 2625 | O52: 1440 | P52: 40 | Q52: 2.625*1.44*0.04 | R52: 0.302
A53: 51 | B53: 4.5mGGS-24-2 | C53: 4.5m钢格栅-24-2 | D53: G403/40/100 | F53: 1 | L53: 122.09 | M53: 122.09 | N53: 1440 | O53: 2625 | P53: 40 | Q53: 1.44*2.625*0.04 | R53: 0.151
A54: 52 | B54: 4.5mGGS-25 | C54: 4.5m钢格栅-25 | D54: G403/40/100 | F54: 1 | L54: 118.70 | M54: 118.70 | N54: 1400 | O54: 2625 | P54: 40 | Q54: 1.4*2.625*0.04 | R54: 0.147
A55: 53 | B55: 4.5mGGS-26 | C55: 4.5m钢格栅-26 | D55: G403/40/100 | F55: 1 | L55: 175.39 | M55: 175.39 | N55: 1810 | O55: 3000 | P55: 40 | Q55: 1.81*3*0.04 | R55: 0.217
A56: 54 | B56: 4.5mGGS-27 | C56: 4.5m钢格栅-27 | D56: G403/40/100 | F56: 3 | L56: 240.31 | M56: 720.94 | N56: 2480 | O56: 3000 | P56: 40 | Q56: 2.48*3*0.04 | R56: 0.893
A57: 55 | B57: 4.5mGGS-28 | C57: 4.5m钢格栅-28 | D57: G403/40/100 | F57: 3 | L57: 139.54 | M57: 418.61 | N57: 1440 | O57: 3000 | P57: 40 | Q57: 1.44*3*0.04 | R57: 0.518
A58: 56 | B58: 4.5mGGS-29 | C58: 4.5m钢格栅-29 | D58: G403/40/100 | F58: 6 | L58: 116.40 | M58: 698.38 | N58: 1540 | O58: 2340 | P58: 40 | Q58: 1.54*2.34*0.04 | R58: 0.865
A59: 57 | B59: 4.5mGGS-30 | C59: 4.5m钢格栅-30 | D59: G403/40/100 | F59: 12 | L59: 113.37 | M59: 1360.48 | N59: 1500 | O59: 2340 | P59: 40 | Q59: 1.5*2.34*0.04 | R59: 1.685
A60: 58 | B60: 4.5mGGS-31 | C60: 4.5m钢格栅-31 | D60: G403/40/100 | F60: 6 | L60: 75.58 | M60: 453.49 | N60: 1000 | O60: 2340 | P60: 40 | Q60: 1*2.34*0.04 | R60: 0.562
A61: 59 | B61: 4.5mGGS-32 | C61: 4.5m钢格栅-32 | D61: G403/40/100 | F61: 5 | L61: 138.18 | M61: 690.90 | N61: 1380 | O61: 3100 | P61: 40 | Q61: 1.38*3.1*0.04 | R61: 0.856
A62: 60 | B62: 4.5mGGS-33 | C62: 4.5m钢格栅-33 | D62: G403/40/100 | F62: 6 | L62: 173.22 | M62: 1039.35 | N62: 1730 | O62: 3100 | P62: 40 | Q62: 1.73*3.1*0.04 | R62: 1.287
A63: 61 | B63: 4.5mGGS-34 | C63: 4.5m钢格栅-34 | D63: G403/40/100 | F63: 6 | L63: 121.91 | M63: 731.48 | N63: 1613 | O63: 2340 | P63: 40 | Q63: 1.613*2.34*0.04 | R63: 0.906
A64: 62 | B64: 4.5mGGS-35 | C64: 4.5m钢格栅-35 | D64: G403/40/100 | F64: 2 | L64: 167.64 | M64: 335.27 | N64: 1730 | O64: 3000 | P64: 40 | Q64: 1.73*3*0.04 | R64: 0.415
A65: 63 | B65: 4.5mGGS-36 | C65: 4.5m钢格栅-36 | D65: G403/40/100 | F65: 2 | L65: 57.95 | M65: 115.89 | N65: 1950 | O65: 920 | P65: 40 | Q65: 1.95*0.92*0.04 | R65: 0.144
A66: 64 | B66: 4.5mGGS-37 | C66: 4.5m钢格栅-37 | D66: G403/40/100 | F66: 2 | L66: 156.20 | M66: 312.41 | N66: 1950 | O66: 2480 | P66: 40 | Q66: 1.95*2.48*0.04 | R66: 0.387
A67: 65 | B67: 4.5mGGS-38 | C67: 4.5m钢格栅-38 | D67: G403/40/100 | F67: 2 | L67: 90.70 | M67: 181.40 | N67: 1950 | O67: 1440 | P67: 40 | Q67: 1.95*1.44*0.04 | R67: 0.225
A68: 66 | B68: 4.5mGGS-39 | C68: 4.5m钢格栅-39 | D68: G403/40/100 | F68: 2 | L68: 78.00 | M68: 156.01 | N68: 2625 | O68: 920 | P68: 40 | Q68: 2.625*0.92*0.04 | R68: 0.193
A69: 67 | B69: 4.5mGGS-40 | C69: 4.5m钢格栅-40 | D69: G403/40/100 | F69: 1 | L69: 20.89 | M69: 20.89 | N69: 1400 | O69: 462 | P69: 40 | Q69: 1.4*0.462*0.04 | R69: 0.026
A70: 68 | B70: 4.5mGGS-41 | C70: 4.5m钢格栅-41 | D70: G403/40/100 | F70: 2 | L70: 141.09 | M70: 282.17 | N70: 1400 | O70: 3120 | P70: 40 | Q70: 1.4*3.12*0.04 | R70: 0.349
A71: 69 | B71: 4.5mGGS-42 | C71: 4.5m钢格栅-42 | D71: G403/40/100 | F71: 2 | L71: 241.06 | M71: 482.11 | N71: 2392 | O71: 3120 | P71: 40 | Q71: 2.392*3.12*0.04 | R71: 0.597
A72: 70 | B72: 4.5mGGS-43 | C72: 4.5m钢格栅-43 | D72: G403/40/100 | F72: 2 | L72: 162.95 | M72: 325.91 | N72: 1617 | O72: 3120 | P72: 40 | Q72: 1.617*3.12*0.04 | R72: 0.404
A73: 71 | B73: 4.5mGGS-44 | C73: 4.5m钢格栅-44 | D73: G403/40/100 | F73: 1 | L73: 24.19 | M73: 24.19 | N73: 1400 | O73: 535 | P73: 40 | Q73: 1.4*0.535*0.04 | R73: 0.030
A74: 72 | B74: 4.5mGGS-45 | C74: 4.5m钢格栅-45 | D74: G403/40/100 | F74: 1 | L74: 135.66 | M74: 135.66 | N74: 1400 | O74: 3000 | P74: 40 | Q74: 1.4*3*0.04 | R74: 0.168
A75: 73 | B75: 4.5mGGS-46 | C75: 4.5m钢格栅-46 | D75: G403/40/100 | F75: 2 | L75: 75.78 | M75: 151.55 | N75: 1380 | O75: 1700 | P75: 40 | Q75: 1.38*1.7*0.04 | R75: 0.188
A76: 74 | B76: 4.5mGGS-47 | C76: 4.5m钢格栅-47 | D76: G403/40/100 | F76: 2 | L76: 94.99 | M76: 189.99 | N76: 1730 | O76: 1700 | P76: 40 | Q76: 1.73*1.7*0.04 | R76: 0.235
A77: 75 | B77: 4.5mGGS-48 | C77: 4.5m钢格栅-48 | D77: G403/40/100 | F77: 2 | L77: 136.18 | M77: 272.35 | N77: 2480 | O77: 1700 | P77: 40 | Q77: 2.48*1.7*0.04 | R77: 0.337
A78: 76 | B78: 4.5mGGS-49 | C78: 4.5m钢格栅-49 | D78: G403/40/100 | F78: 2 | L78: 79.07 | M78: 158.14 | N78: 1440 | O78: 1700 | P78: 40 | Q78: 1.44*1.7*0.04 | R78: 0.196
A79: 77 | B79: 4.5mGGS-50 | C79: 4.5m钢格栅-50 | D79: G403/40/100 | F79: 1 | L79: 133.72 | M79: 133.72 | N79: 1380 | O79: 3000 | P79: 40 | Q79: 1.38*3*0.04 | R79: 0.166
A80: 78 | B80: 4.5mGGS-51 | C80: 4.5m钢格栅-51 | D80: G403/40/100 | F80: 1 | L80: 207.72 | M80: 207.72 | N80: 2180 | O80: 2950 | P80: 40 | Q80: 2.18*2.95*0.04 | R80: 0.257
A81: 79 | B81: 4.5mGGS-52 | C81: 4.5m钢格栅-52 | D81: G403/40/100 | F81: 1 | L81: 89.15 | M81: 89.15 | N81: 1380 | O81: 2000 | P81: 40 | Q81: 1.38*2*0.04 | R81: 0.110
A82: 80 | B82: 4.5mGGS-53 | C82: 4.5m钢格栅-53 | D82: G403/40/100 | F82: 1 | L82: 111.76 | M82: 111.76 | N82: 1730 | O82: 2000 | P82: 40 | Q82: 1.73*2*0.04 | R82: 0.138
A83: 81 | B83: 8.5mGGS-1 | C83: 8.5m钢格栅-1 | D83: G403/40/100 | F83: 8 | L83: 127.96 | M83: 1023.65 | N83: 1390 | O83: 2850 | P83: 40 | Q83: 1.39*2.85*0.04 | R83: 1.268
A84: 82 | B84: 8.5mGGS-2 | C84: 8.5m钢格栅-2 | D84: G403/40/100 | F84: 4 | L84: 131.80 | M84: 527.19 | N84: 2020 | O84: 2020 | P84: 40 | Q84: 2.02*2.02*0.04 | R84: 0.653
A85: 83 | B85: 8.5mGGS-3 | C85: 8.5m钢格栅-3 | D85: G403/40/100 | F85: 16 | L85: 143.21 | M85: 2291.44 | N85: 2020 | O85: 2195 | P85: 40 | Q85: 2.02*2.195*0.04 | R85: 2.838
A86: 84 | B86: 8.5mGGS-4 | C86: 8.5m钢格栅-4 | D86: G403/40/100 | F86: 2 | L86: 52.13 | M86: 104.26 | N86: 650 | O86: 2483 | P86: 40 | Q86: 0.65*2.483*0.04 | R86: 0.129
A87: 85 | B87: 8.5mGGS-5 | C87: 8.5m钢格栅-5 | D87: G403/40/100 | F87: 4 | L87: 45.37 | M87: 181.48 | N87: 650 | O87: 2161 | P87: 40 | Q87: 0.65*2.161*0.04 | R87: 0.225
A88: 86 | B88: 8.5mGGS-6 | C88: 8.5m钢格栅-6 | D88: G403/40/100 | F88: 4 | L88: 112.43 | M88: 449.72 | N88: 1520 | O88: 2290 | P88: 40 | Q88: 1.52*2.29*0.04 | R88: =N88*O88*P88*F88/1000000000 -> 0.557
A89: 87 | B89: 8.5mGGS-7 | C89: 8.5m钢格栅-7 | D89: G403/40/100 | F89: 8 | L89: 98.19 | M89: 785.54 | N89: 1520 | O89: 2000 | P89: 40 | Q89: 1.52*2*0.04 | R89: 0.973
A90: 88 | B90: 8.5mGGS-8 | C90: 8.5m钢格栅-8 | D90: G403/40/100 | F90: 4 | L90: 35.02 | M90: 140.07 | N90: 968 | O90: 1120 | P90: 40 | Q90: 0.968*1.12*0.04 | R90: 0.173
A91: 89 | B91: 8.5mGGS-9 | C91: 8.5m钢格栅-9 | D91: G403/40/100 | F91: 4 | L91: 76.34 | M91: 305.35 | N91: 1170 | O91: 2020 | P91: 40 | Q91: 1.17*2.02*0.04 | R91: 0.378
A92: 90 | B92: 8.5mGGS-10 | C92: 8.5m钢格栅-10 | D92: G403/40/100 | F92: 4 | L92: 73.24 | M92: 292.96 | N92: 1170 | O92: 1938 | P92: 40 | Q92: 1.17*1.938*0.04 | R92: 0.363
A93: 91 | B93: 8.5mGGS-11 | C93: 8.5m钢格栅-11 | D93: G403/40/100 | F93: 2 | L93: 47.93 | M93: =L93*F93 -> 95.86 | N93: 650 | O93: 2283 | P93: 40 | Q93: 0.65*2.283*0.04 | R93: 0.119
A94: 92 | B94: 8.5mGGS-12 | C94: 8.5m钢格栅-12 | D94: G403/40/100 | F94: 2 | L94: 125.03 | M94: 250.07 | N94: 2450 | O94: 1580 | P94: 40 | Q94: 2.45*1.58*0.04 | R94: 0.310
A95: 93 | B95: 8.5mGGS-13 | C95: 8.5m钢格栅-13 | D95: G403/40/100 | F95: 4 | L95: 186.49 | M95: 745.96 | N95: 2673 | O95: 2160 | P95: 40 | Q95: 2.673*2.16*0.04 | R95: 0.924
A96: 94 | B96: 8.5mGGS-14 | C96: 8.5m钢格栅-14 | D96: G403/40/100 | F96: 2 | L96: 107.17 | M96: 214.34 | N96: 2100 | O96: 1580 | P96: 40 | Q96: 2.1*1.58*0.04 | R96: 0.265
A97: 95 | B97: 8.5mGGS-15 | C97: 8.5m钢格栅-15 | D97: G403/40/100 | F97: 2 | L97: 146.51 | M97: 293.03 | N97: 2100 | O97: 2160 | P97: 40 | Q97: 2.1*2.16*0.04 | R97: 0.363
A98: 96 | B98: 8.5mGGS-16 | C98: 8.5m钢格栅-16 | D98: G403/40/100 | F98: 2 | L98: 136.41 | M98: 272.83 | N98: 2673 | O98: 1580 | P98: 40 | Q98: 2.673*1.58*0.04 | R98: 0.338
A99: 97 | B99: 8.5mGGS-17 | C99: 8.5m钢格栅-17 | D99: G403/40/100 | F99: 4 | L99: 77.00 | M99: 307.99 | N99: 2450 | O99: 973 | P99: 40 | Q99: 2.45*0.973*0.04 | R99: 0.381
A100: 98 | B100: 8.5mGGS-18 | C100: 8.5m钢格栅-18 | D100: G403/40/100 | F100: 4 | L100: 217.62 | M100: 870.49 | N100: 2450 | O100: 2750 | P100: 40 | Q100: 2.45*2.75*0.04 | R100: 1.078
A101: 99 | B101: 8.5mGGS-19 | C101: 8.5m钢格栅-19 | D101: G403/40/100 | F101: 4 | L101: 29.54 | M101: 118.17 | N101: 940 | O101: 973 | P101: 40 | Q101: 0.94*0.973*0.04 | R101: 0.146
A102: 100 | B102: 8.5mGGS-20 | C102: 8.5m钢格栅-20 | D102: G403/40/100 | F102: 4 | L102: 83.50 | M102: 333.98 | N102: 940 | O102: 2750 | P102: 40 | Q102: 0.94*2.75*0.04 | R102: 0.414
A103: 101 | B103: 9.5mGGS-1 | C103: 9.5m钢格栅-1 | D103: G403/40/100 | F103: 3 | L103: 152.62 | M103: 457.85 | N103: 2700 | O103: 1750 | P103: 40 | Q103: 2.7*1.75*0.04 | R103: 0.567
A104: 102 | B104: 9.5mGGS-2 | C104: 9.5m钢格栅-2 | D104: G403/40/100 | F104: 4 | L104: 93.02 | M104: 372.10 | N104: 1440 | O104: 2000 | P104: 40 | Q104: 1.44*2*0.04 | R104: 0.461
A105: 103 | B105: 9.5mGGS-3 | C105: 9.5m钢格栅-3 | D105: G403/40/100 | F105: 4 | L105: 90.44 | M105: 361.76 | N105: 1400 | O105: 2000 | P105: 40 | Q105: 1.4*2*0.04 | R105: 0.448
A106: 104 | B106: 9.5mGGS-4 | C106: 9.5m钢格栅-4 | D106: G403/40/100 | F106: 2 | L106: 97.68 | M106: 195.35 | N106: 1440 | O106: 2100 | P106: 40 | Q106: 1.44*2.1*0.04 | R106: 0.242
A107: 105 | B107: 9.5mGGS-5 | C107: 9.5m钢格栅-5 | D107: G403/40/100 | F107: 2 | L107: 94.96 | M107: 189.92 | N107: 1400 | O107: 2100 | P107: 40 | Q107: 1.4*2.1*0.04 | R107: 0.235
A108: 106 | B108: 9.5mGGS-6 | C108: 9.5m钢格栅-6 | D108: G403/40/100 | F108: 6 | L108: 101.58 | M108: 609.50 | N108: 1850 | O108: 1700 | P108: 40 | Q108: 1.85*1.7*0.04 | R108: 0.755
A109: 107 | B109: 9.5mGGS-7 | C109: 9.5m钢格栅-7 | D109: G403/40/100 | F109: 4 | L109: 80.37 | M109: 321.48 | N109: 1850 | O109: 1345 | P109: 40 | Q109: 1.85*1.345*0.04 | R109: 0.398
A110: 108 | B110: 9.5mGGS-8 | C110: 9.5m钢格栅-8 | D110: G403/40/100 | F110: 7 | L110: 98.84 | M110: 691.87 | N110: 1800 | O110: 1700 | P110: 40 | Q110: 1.8*1.7*0.04 | R110: 0.857
A111: 109 | B111: 9.5mGGS-9 | C111: 9.5m钢格栅-9 | D111: G403/40/100 | F111: 6 | L111: 78.20 | M111: 469.19 | N111: 1800 | O111: 1345 | P111: 40 | Q111: 1.8*1.345*0.04 | R111: 0.581
A112: 110 | B112: 9.5mGGS-10 | C112: 9.5m钢格栅-10 | D112: G403/40/100 | F112: 2 | L112: 183.14 | M112: 366.28 | N112: 1750 | O112: 3240 | P112: 40 | Q112: 1.75*3.24*0.04 | R112: 0.454
A113: 111 | B113: 9.5mGGS-11 | C113: 9.5m钢格栅-11 | D113: G403/40/100 | F113: 5 | L113: 188.37 | M113: 941.87 | N113: 1800 | O113: 3240 | P113: 40 | Q113: 1.8*3.24*0.04 | R113: 1.166
A114: 112 | B114: 9.5mGGS-12 | C114: 9.5m钢格栅-12 | D114: G403/40/100 | F114: 4 | L114: 192.56 | M114: 770.24 | N114: 1840 | O114: 3240 | P114: 40 | Q114: 1.84*3.24*0.04 | R114: 0.954
A115: 113 | B115: 9.5mGGS-13 | C115: 9.5m钢格栅-13 | D115: G403/40/100 | F115: 2 | L115: 140.46 | M115: 280.91 | N115: 1300 | O115: 3345 | P115: 40 | Q115: 1.3*3.345*0.04 | R115: 0.348
A116: 114 | B116: 9.5mGGS-14 | C116: 9.5m钢格栅-14 | D116: G403/40/100 | F116: 2 | L116: 117.77 | M116: 235.53 | N116: 3345 | O116: 1090 | P116: 40 | Q116: 3.345*1.09*0.04 | R116: 0.292
A117: 115 | B117: 9.5mGGS-15 | C117: 9.5m钢格栅-15 | D117: G403/40/100 | F117: 2 | L117: 95.06 | M117: 190.12 | N117: 2700 | O117: 1090 | P117: 40 | Q117: 2.7*1.09*0.04 | R117: 0.235
A118: 116 | B118: 9.5mGGS-16 | C118: 9.5m钢格栅-16 | D118: G403/40/100 | F118: 8 | L118: 151.26 | M118: 1210.09 | N118: 3345 | O118: 1400 | P118: 40 | Q118: 3.345*1.4*0.04 | R118: 1.499
A119: 117 | B119: 9.5mGGS-17 | C119: 9.5m钢格栅-17 | D119: G403/40/100 | F119: 10 | L119: 122.09 | M119: 1220.94 | N119: 2700 | O119: 1400 | P119: 40 | Q119: 2.7*1.4*0.04 | R119: 1.512
A120: 118 | B120: 9.5mGGS-18 | C120: 9.5m钢格栅-18 | D120: G403/40/100 | F120: 2 | L120: 192.74 | M120: 385.48 | N120: 3243 | O120: 1840 | P120: 40 | Q120: 3.243*1.84*0.04 | R120: 0.477
A121: 119 | B121: 9.5mGGS-19 | C121: 9.5m钢格栅-19 | D121: G403/40/100 | F121: 2 | L121: 183.31 | M121: 366.62 | N121: 3243 | O121: 1750 | P121: 40 | Q121: 3.243*1.75*0.04 | R121: 0.454
A122: 120 | B122: 9.5mGGS-20 | C122: 9.5m钢格栅-20 | D122: G403/40/100 | F122: 4 | L122: 160.47 | M122: 641.87 | N122: 2700 | O122: 1840 | P122: 40 | Q122: 2.7*1.84*0.04 | R122: 0.795
A123: 121 | B123: 9.5mGGS-21 | C123: 9.5m钢格栅-21 | D123: G403/40/100 | F123: 2 | L123: 187.21 | M123: 374.42 | N123: 1840 | O123: 3150 | P123: 40 | Q123: 1.84*3.15*0.04 | R123: 0.464
A124: 122 | B124: 9.5mGGS-22 | C124: 9.5m钢格栅-22 | D124: G403/40/100 | F124: 2 | L124: 178.05 | M124: 356.11 | N124: 1750 | O124: 3150 | P124: 40 | Q124: 1.75*3.15*0.04 | R124: 0.441
A125: 123 | B125: 9.5mGGS-23 | C125: 9.5m钢格栅-23 | D125: G403/40/100 | F125: 1 | L125: 132.27 | M125: 132.27 | N125: 1300 | O125: 3150 | P125: 40 | Q125: 1.3*3.15*0.04 | R125: 0.164
A126: 124 | B126: 9.5mGGS-24 | C126: 9.5m钢格栅-24 | D126: G403/40/100 | F126: 2 | L126: 109.53 | M126: 219.07 | N126: 1840 | O126: 1843 | P126: 40 | Q126: 1.84*1.843*0.04 | R126: 0.271
A127: 125 | B127: 9.5mGGS-25 | C127: 9.5m钢格栅-25 | D127: G403/40/100 | F127: 2 | L127: 104.18 | M127: 208.35 | N127: 1750 | O127: 1843 | P127: 40 | Q127: 1.75*1.843*0.04 | R127: 0.258
A128: 126 | B128: 9.5mGGS-26 | C128: 9.5m钢格栅-26 | D128: G403/40/100 | F128: 2 | L128: 83.34 | M128: 166.68 | N128: 1400 | O128: 1843 | P128: 40 | Q128: 1.4*1.843*0.04 | R128: 0.206
A129: 127 | B129: 9.5mGGS-27 | C129: 9.5m钢格栅-27 | D129: G403/40/100 | F129: 8 | L129: 148.58 | M129: 1188.64 | N129: 1840 | O129: 2500 | P129: 40 | Q129: 1.84*2.5*0.04 | R129: 1.472
A130: 128 | B130: 9.5mGGS-28 | C130: 9.5m钢格栅-28 | D130: G403/40/100 | F130: 8 | L130: 141.31 | M130: 1130.50 | N130: 1750 | O130: 2500 | P130: 40 | Q130: 1.75*2.5*0.04 | R130: 1.400
A131: 129 | B131: 9.5mGGS-29 | C131: 9.5m钢格栅-29 | D131: G403/40/100 | F131: 14 | L131: 113.05 | M131: 1582.70 | N131: 1400 | O131: 2500 | P131: 40 | Q131: 1.4*2.5*0.04 | R131: 1.960
A132: 130 | B132: 9.5mGGS-30 | C132: 9.5m钢格栅-30 | D132: G403/40/100 | F132: 1 | L132: 191.54 | M132: 191.54 | N132: 1980 | O132: 2995 | P132: 40 | Q132: 1.98*2.995*0.04 | R132: 0.237
A133: 131 | B133: 9.5mGGS-31 | C133: 9.5m钢格栅-31 | D133: G403/40/100 | F133: 1 | L133: 202.59 | M133: 202.59 | N133: 3233 | O133: 1940 | P133: 40 | Q133: 3.233*1.94*0.04 | R133: 0.251
A134: 132 | B134: 9.5mGGS-32 | C134: 9.5m钢格栅-32 | D134: G403/40/100 | F134: 1 | L134: 179.97 | M134: 179.97 | N134: 2872 | O134: 1940 | P134: 40 | Q134: 2.872*1.94*0.04 | R134: 0.223
A135: 133 | B135: 9.5mGGS-33 | C135: 9.5m钢格栅-33 | D135: G403/40/100 | F135: 1 | L135: 156.64 | M135: 156.64 | N135: 3233 | O135: 1500 | P135: 40 | Q135: 3.233*1.5*0.04 | R135: 0.194
A136: 134 | B136: 9.5mGGS-34 | C136: 9.5m钢格栅-34 | D136: G403/40/100 | F136: 2 | L136: 139.15 | M136: 278.30 | N136: 2872 | O136: 1500 | P136: 40 | Q136: 2.872*1.5*0.04 | R136: 0.345
A137: 135 | B137: 9.5mGGS-35 | C137: 9.5m钢格栅-35 | D137: G403/40/100 | F137: 1 | L137: 141.62 | M137: 141.62 | N137: 2923 | O137: 1500 | P137: 40 | Q137: 2.923*1.5*0.04 | R137: 0.175
A138: 136 | B138: 9.5mGGS-36 | C138: 9.5m钢格栅-36 | D138: G403/40/100 | F138: 1 | L138: 151.06 | M138: 151.06 | N138: 2923 | O138: 1600 | P138: 40 | Q138: 2.923*1.6*0.04 | R138: 0.187
A139: 137 | B139: 9.5mGGS-37 | C139: 9.5m钢格栅-37 | D139: G403/40/100 | F139: 1 | L139: 148.42 | M139: 148.42 | N139: 2872 | O139: 1600 | P139: 40 | Q139: 2.872*1.6*0.04 | R139: 0.184
A140: 138 | B140: 9.5mGGS-38 | C140: 9.5m钢格栅-38 | D140: G403/40/100 | F140: 1 | L140: 155.78 | M140: 155.78 | N140: 2923 | O140: 1650 | P140: 40 | Q140: 2.923*1.65*0.04 | R140: 0.193
A141: 139 | B141: 9.5mGGS-39 | C141: 9.5m钢格栅-39 | D141: G403/40/100 | F141: 2 | L141: 126.99 | M141: 253.97 | N141: 2923 | O141: 1345 | P141: 40 | Q141: 2.923*1.345*0.04 | R141: 0.315
A142: 140 | B142: 9.5mGGS-40 | C142: 9.5m钢格栅-40 | D142: G403/40/100 | F142: 1 | L142: 152.26 | M142: 152.26 | N142: 2857 | O142: 1650 | P142: 40 | Q142: 2.857*1.65*0.04 | R142: 0.189
A143: 141 | B143: 9.5mGGS-41 | C143: 9.5m钢格栅-41 | D143: G403/40/100 | F143: 2 | L143: 124.12 | M143: 248.24 | N143: 2857 | O143: 1345 | P143: 40 | Q143: 2.857*1.345*0.04 | R143: 0.307
A144: 142 | B144: 9.5mGGS-42 | C144: 9.5m钢格栅-42 | D144: G403/40/100 | F144: 6 | L144: 120.32 | M144: 721.91 | N144: 1490 | O144: 2500 | P144: 40 | Q144: 1.49*2.5*0.04 | R144: 0.894
A145: 143 | B145: 9.5mGGS-43 | C145: 9.5m钢格栅-43 | D145: G403/40/100 | F145: 4 | L145: 101.16 | M145: 404.65 | N145: 1440 | O145: 2175 | P145: 40 | Q145: 1.44*2.175*0.04 | R145: 0.501
A146: 144 | B146: 9.5mGGS-44 | C146: 9.5m钢格栅-44 | D146: G403/40/100 | F146: 4 | L146: 98.35 | M146: 393.41 | N146: 1400 | O146: 2175 | P146: 40 | Q146: 1.4*2.175*0.04 | R146: 0.487
A147: 145 | B147: 9.5mGGS-45 | C147: 9.5m钢格栅-45 | D147: G403/40/100 | F147: 4 | L147: 104.68 | M147: 418.70 | N147: 1490 | O147: 2175 | P147: 40 | Q147: 1.49*2.175*0.04 | R147: 0.519
A148: 146 | B148: 9.5mGGS-46 | C148: 9.5m钢格栅-46 | D148: G403/40/100 | F148: 2 | L148: 137.36 | M148: 274.71 | N148: 1350 | O148: 3150 | P148: 40 | Q148: 1.35*3.15*0.04 | R148: 0.340
A149: 147 | B149: 9.5mGGS-47 | C149: 9.5m钢格栅-47 | D149: G403/40/100 | F149: 3 | L149: 142.44 | M149: 427.33 | N149: 1400 | O149: 3150 | P149: 40 | Q149: 1.4*3.15*0.04 | R149: 0.529
A150: 148 | B150: 9.5mGGS-48 | C150: 9.5m钢格栅-48 | D150: G403/40/100 | F150: 2 | L150: 151.60 | M150: 303.20 | N150: 1490 | O150: 3150 | P150: 40 | Q150: 1.49*3.15*0.04 | R150: 0.375
A151: 149 | B151: 9.5mGGS-49 | C151: 9.5m钢格栅-49 | D151: G403/40/100 | F151: 14 | L151: 150.79 | M151: 2111.01 | N151: 3458 | O151: 1350 | P151: 40 | Q151: 3.458*1.35*0.04 | R151: 2.614
A152: 150 | B152: 9.5mGGS-50 | C152: 9.5m钢格栅-50 | D152: G403/40/100 | F152: 6 | L152: 83.46 | M152: 500.76 | N152: 1914 | O152: 1350 | P152: 40 | Q152: 1.914*1.35*0.04 | R152: =N152*O152*P152*F152/1000000000 -> 0.620
A153: 151 | B153: 9.5mGGS-51 | C153: 9.5m钢格栅-51 | D153: G403/40/100 | F153: 6 | L153: 99.33 | M153: 595.99 | N153: 2278 | O153: 1350 | P153: 40 | Q153: 2.278*1.35*0.04 | R153: 0.738
A154: 152 | B154: 9.5mGGS-52 | C154: 9.5m钢格栅-52 | D154: G403/40/100 | F154: 3 | L154: 86.55 | M154: 259.65 | N154: 1914 | O154: 1400 | P154: 40 | Q154: 1.914*1.4*0.04 | R154: 0.322
A155: 153 | B155: 9.5mGGS-53 | C155: 9.5m钢格栅-53 | D155: G403/40/100 | F155: 2 | L155: 92.12 | M155: 184.23 | N155: 1914 | O155: 1490 | P155: 40 | Q155: 1.914*1.49*0.04 | R155: 0.228
A156: 154 | B156: 9.5mGGS-54 | C156: 9.5m钢格栅-54 | D156: G403/40/100 | F156: 3 | L156: 103.01 | M156: 309.03 | N156: 2278 | O156: 1400 | P156: 40 | Q156: 2.278*1.4*0.04 | R156: 0.383
A157: 155 | B157: 9.5mGGS-55 | C157: 9.5m钢格栅-55 | D157: G403/40/100 | F157: 2 | L157: 109.63 | M157: =L157*F157 -> 219.27 | N157: 2278 | O157: 1490 | P157: 40 | Q157: 2.278*1.49*0.04 | R157: 0.272
A158: 156 | B158: 9.5mGGS-56 | C158: 9.5m钢格栅-56 | D158: G403/40/100 | F158: 4 | L158: 202.07 | M158: 808.28 | N158: 3400 | O158: 1840 | P158: 40 | Q158: 3.4*1.84*0.04 | R158: 1.001
A159: 157 | B159: 9.5mGGS-57 | C159: 9.5m钢格栅-57 | D159: G403/40/100 | F159: 3 | L159: 197.68 | M159: 593.03 | N159: 3400 | O159: 1800 | P159: 40 | Q159: 3.4*1.8*0.04 | R159: 0.734
A160: 158 | B160: 9.5mGGS-58 | C160: 9.5m钢格栅-58 | D160: G403/40/100 | F160: 3 | L160: 156.98 | M160: 470.93 | N160: 2700 | O160: 1800 | P160: 40 | Q160: 2.7*1.8*0.04 | R160: 0.583
A161: 159 | B161: 9.5mGGS-59 | C161: 9.5m钢格栅-59 | D161: G403/40/100 | F161: 2 | L161: 141.72 | M161: 283.43 | N161: 3250 | O161: 1350 | P161: 40 | Q161: 3.25*1.35*0.04 | R161: 0.351
A162: 160 | B162: 9.5mGGS-60 | C162: 9.5m钢格栅-60 | D162: G403/40/100 | F162: 2 | L162: 146.97 | M162: 293.93 | N162: 3250 | O162: 1400 | P162: 40 | Q162: 3.25*1.4*0.04 | R162: 0.364
A163: 161 | B163: 9.5mGGS-61 | C163: 9.5m钢格栅-61 | D163: G403/40/100 | F163: 2 | L163: 156.41 | M163: 312.83 | N163: 3250 | O163: 1490 | P163: 40 | Q163: 3.25*1.49*0.04 | R163: 0.387
A164: 162 | B164: 9.5mGGS-62 | C164: 9.5m钢格栅-62 | D164: G403/40/100 | F164: 2 | L164: 117.73 | M164: 235.47 | N164: 2700 | O164: 1350 | P164: 40 | Q164: 2.7*1.35*0.04 | R164: 0.292
A165: 163 | B165: 9.5mGGS-63 | C165: 9.5m钢格栅-63 | D165: G403/40/100 | F165: 2 | L165: 129.94 | M165: 259.89 | N165: 2700 | O165: 1490 | P165: 40 | Q165: 2.7*1.49*0.04 | R165: 0.322
A166: 164 | B166: 9.5mGGS-64 | C166: 9.5m钢格栅-64 | D166: G403/40/100 | F166: 1 | L166: 146.86 | M166: 146.86 | N166: 3368 | O166: 1350 | P166: 40 | Q166: 3.368*1.35*0.04 | R166: 0.182
A167: 165 | B167: 9.5mGGS-65 | C167: 9.5m钢格栅-65 | D167: G403/40/100 | F167: 3 | L167: 152.30 | M167: 456.90 | N167: 3368 | O167: 1400 | P167: 40 | Q167: 3.368*1.4*0.04 | R167: 0.566
A168: 166 | B168: 9.5mGGS-66 | C168: 9.5m钢格栅-66 | D168: G403/40/100 | F168: 2 | L168: 162.09 | M168: 324.18 | N168: 3368 | O168: 1490 | P168: 40 | Q168: 3.368*1.49*0.04 | R168: 0.401
A169: 167 | B169: 9.5mGGS-67 | C169: 9.5m钢格栅-67 | D169: G403/40/100 | F169: 2 | L169: 101.07 | M169: 202.13 | N169: 1490 | O169: 2100 | P169: 40 | Q169: 1.49*2.1*0.04 | R169: 0.250
A170: 168 | B170: 9.5mGGS-68 | C170: 9.5m钢格栅-68 | D170: G403/40/100 | F170: 4 | L170: 96.25 | M170: 385.02 | N170: 1490 | O170: 2000 | P170: 40 | Q170: 1.49*2*0.04 | R170: 0.477
A171: 169 | B171: 9.5mGGS-69 | C171: 9.5m钢格栅-69 | D171: G403/40/100 | F171: 6 | L171: 116.28 | M171: 697.68 | N171: 1440 | O171: 2500 | P171: 40 | Q171: 1.44*2.5*0.04 | R171: 0.864
A172: 170 | B172: 9.5mGGS-70 | C172: 9.5m钢格栅-70 | D172: G403/40/100 | F172: 6 | L172: 108.46 | M172: 650.74 | N172: 2060 | O172: 1630 | P172: 40 | Q172: 2.06*1.63*0.04 | R172: 0.806
A173: 171 | B173: 9.5mGGS-71 | C173: 9.5m钢格栅-71 | D173: G403/40/100 | F173: 6 | L173: 112.25 | M173: 673.49 | N173: 2132 | O173: 1630 | P173: 40 | Q173: 2.132*1.63*0.04 | R173: 0.834
A174: 172 | B174: 9.5mGGS-72 | C174: 9.5m钢格栅-72 | D174: G403/40/100 | F174: 6 | L174: 182.06 | M174: 1092.36 | N174: 3458 | O174: 1630 | P174: 40 | Q174: 3.458*1.63*0.04 | R174: 1.353
A175: 173 | B175: 9.5mGGS-73 | C175: 9.5m钢格栅-73 | D175: G403/40/100 | F175: 2 | L175: 53.23 | M175: 106.46 | N175: 2060 | O175: 800 | P175: 40 | Q175: 2.06*0.8*0.04 | R175: 0.132
A176: 174 | B176: 9.5mGGS-74 | C176: 9.5m钢格栅-74 | D176: G403/40/100 | F176: 2 | L176: 55.09 | M176: 110.18 | N176: 2132 | O176: 800 | P176: 40 | Q176: 2.132*0.8*0.04 | R176: 0.136
A177: 175 | B177: 9.5mGGS-75 | C177: 9.5m钢格栅-75 | D177: G403/40/100 | F177: 2 | L177: 89.35 | M177: 178.71 | N177: 3458 | O177: 800 | P177: 40 | Q177: 3.458*0.8*0.04 | R177: 0.221
A178: 176 | B178: 9.5mGGS-76 | C178: 9.5m钢格栅-76 | D178: G403/40/100 | F178: 7 | L178: 89.83 | M178: 628.78 | N178: 2060 | O178: 1350 | P178: 40 | Q178: 2.06*1.35*0.04 | R178: 0.779
A179: 177 | B179: 9.5mGGS-77 | C179: 9.5m钢格栅-77 | D179: G403/40/100 | F179: 7 | L179: 92.97 | M179: 650.76 | N179: 2132 | O179: 1350 | P179: 40 | Q179: 2.132*1.35*0.04 | R179: 0.806
A180: 178 | B180: 9.5mGGS-78 | C180: 9.5m钢格栅-78 | D180: G403/40/100 | F180: 2 | L180: 134.74 | M180: 269.48 | N180: 2060 | O180: 2025 | P180: 40 | Q180: 2.06*2.025*0.04 | R180: 0.334
A181: 179 | B181: 9.5mGGS-79 | C181: 9.5m钢格栅-79 | D181: G403/40/100 | F181: 1 | L181: 139.45 | M181: 139.45 | N181: 2132 | O181: 2025 | P181: 40 | Q181: 2.132*2.025*0.04 | R181: 0.173
A182: 180 | B182: 9.5mGGS-80 | C182: 9.5m钢格栅-80 | D182: G403/40/100 | F182: 1 | L182: 226.18 | M182: 226.18 | N182: 3458 | O182: 2025 | P182: 40 | Q182: 3.458*2.025*0.04 | R182: 0.280
A183: 181 | B183: 9.5mGGS-81 | C183: 9.5m钢格栅-81 | D183: G403/40/100 | F183: 6 | L183: 72.04 | M183: 432.21 | N183: 1593 | O183: 1400 | P183: 40 | Q183: 1.593*1.4*0.04 | R183: 0.535
A184: 182 | B184: 9.5mGGS-82 | C184: 9.5m钢格栅-82 | D184: G403/40/100 | F184: 6 | L184: 156.37 | M184: 938.22 | N184: 3458 | O184: 1400 | P184: 40 | Q184: 3.458*1.4*0.04 | R184: 1.162
A185: 183 | B185: 9.5mGGS-83 | C185: 9.5m钢格栅-83 | D185: G403/40/100 | F185: 2 | L185: 69.46 | M185: 138.93 | N185: 1593 | O185: 1350 | P185: 40 | Q185: 1.593*1.35*0.04 | R185: 0.172
A186: 184 | B186: 9.5mGGS-84 | C186: 9.5m钢格栅-84 | D186: G403/40/100 | F186: 2 | L186: 83.61 | M186: 167.23 | N186: 1593 | O186: 1625 | P186: 40 | Q186: 1.593*1.625*0.04 | R186: 0.207
A187: 185 | B187: 9.5mGGS-85 | C187: 9.5m钢格栅-85 | D187: G403/40/100 | F187: 2 | L187: 181.50 | M187: 363.00 | N187: 3458 | O187: 1625 | P187: 40 | Q187: 3.458*1.625*0.04 | R187: 0.450
A188: 186 | B188: 9.5mGGS-86 | C188: 9.5m钢格栅-86 | D188: G403/40/100 | F188: 4 | L188: 178.59 | M188: 714.37 | N188: 1840 | O188: 3005 | P188: 40 | Q188: 1.84*3.005*0.04 | R188: 0.885
A189: 187 | B189: 9.5mGGS-87 | C189: 9.5m钢格栅-87 | D189: G403/40/100 | F189: 4 | L189: 169.86 | M189: 679.43 | N189: 1750 | O189: 3005 | P189: 40 | Q189: 1.75*3.005*0.04 | R189: 0.841
A190: 188 | B190: 9.5mGGS-88 | C190: 9.5m钢格栅-88 | D190: G403/40/100 | F190: 4 | L190: 135.89 | M190: 543.54 | N190: 1400 | O190: 3005 | P190: 40 | Q190: 1.4*3.005*0.04 | R190: 0.673
A191: 189 | B191: 9.5mGGS-89 | C191: 9.5m钢格栅-89 | D191: G403/40/100 | F191: 4 | L191: 118.14 | M191: 472.58 | N191: 1630 | O191: 2244 | P191: 40 | Q191: 1.63*2.244*0.04 | R191: 0.585
A192: 190 | B192: 9.5mGGS-90 | C192: 9.5m钢格栅-90 | D192: G403/40/100 | F192: 2 | L192: 166.38 | M192: 332.75 | N192: 3030 | O192: 1700 | P192: 40 | Q192: 3.03*1.7*0.04 | R192: 0.412
A193: 191 | B193: 9.5mGGS-91 | C193: 9.5m钢格栅-91 | D193: G403/40/100 | F193: 4 | L193: 134.08 | M193: 536.32 | N193: 3030 | O193: 1370 | P193: 40 | Q193: 3.03*1.37*0.04 | R193: 0.664
A194: 192 | B194: 9.5mGGS-92 | C194: 9.5m钢格栅-92 | D194: G403/40/100 | F194: 8 | L194: 79.65 | M194: 637.21 | N194: 1800 | O194: 1370 | P194: 40 | Q194: 1.8*1.37*0.04 | R194: 0.789
A195: 193 | B195: 9.5mGGS-93 | C195: 9.5m钢格栅-93 | D195: G403/40/100 | F195: 8 | L195: 81.86 | M195: 654.91 | N195: 1850 | O195: 1370 | P195: 40 | Q195: 1.85*1.37*0.04 | R195: 0.811
A196: 194 | B196: 9.5mGGS-94 | C196: 9.5m钢格栅-94 | D196: G403/40/100 | F196: 2 | L196: 134.53 | M196: 269.06 | N196: 2450 | O196: 1700 | P196: 40 | Q196: 2.45*1.7*0.04 | R196: 0.333
A197: 195 | B197: 9.5mGGS-95 | C197: 9.5m钢格栅-95 | D197: G403/40/100 | F197: 4 | L197: 108.41 | M197: 433.66 | N197: 2450 | O197: 1370 | P197: 40 | Q197: 2.45*1.37*0.04 | R197: 0.537
A198: 196 | B198: 9.5mGGS-96 | C198: 9.5m钢格栅-96 | D198: G403/40/100 | F198: 1 | L198: 142.12 | M198: 142.12 | N198: 2500 | O198: 1760 | P198: 40 | Q198: 2.5*1.76*0.04 | R198: 0.176
A199: 197 | B199: 9.5mGGS-97 | C199: 9.5m钢格栅-97 | D199: G403/40/100 | F199: 2 | L199: 108.61 | M199: 217.22 | N199: 2500 | O199: 1345 | P199: 40 | Q199: 2.5*1.345*0.04 | R199: 0.269
A200: 198 | B200: 9.5mGGS-98 | C200: 9.5m钢格栅-98 | D200: G403/40/100 | F200: 1 | L200: 113.70 | M200: 113.70 | N200: 2000 | O200: 1760 | P200: 40 | Q200: 2*1.76*0.04 | R200: 0.141
... 220 more rows

Sheet 2
C1: 2包货物清单
A2: 序号 | B2: 英文名称 | C2: 中文名称 | D2: 规格型号 | E2: 单位 | F2: 数量 | G2: 件数 | H2: 长×宽×高（m） | I2: 体积（m3) | J2: 备注
A3: 1 | C3: 镀锌槽钢 | D3: 6.3# | E3: 吨 | F3: =1.06*4.776 -> 5.063 | G3: 1 | H3: 6*0.61*310 | I3: =6*0.61*0.31 -> 1.135 | J3: 120根
A4: 2 | C4: 镀锌槽钢 | D4: 6.3# | E4: 吨 | F4: =3.582*1.06 -> 3.797 | G4: 1 | H4: 6*0.45*0.22 | I4: =6*0.45*0.22 -> 0.594 | J4: 90根
A5: 3 | C5: 镀锌槽钢（散装） | D5: 6.3# | E5: 吨 | F5: =1.592*1.06 -> 1.688 | G5: 待打包 | J5: 40根
A6: 4 | C6: 镀锌槽钢 | D6: 10# | E6: 吨 | F6: 25.458 | G6: 5 | H6: 6*0.56*0.47 | I6: =6*0.56*0.47*5 -> 7.896 | J6: 400根
A7: 5 | C7: 镀锌槽钢（散装） | D7: 10# | E7: 吨 | F7: 1.273 | G7: 待打包 | J7: 20根
A8: 6 | C8: 镀锌槽钢 | D8: 20#A | E8: 吨 | F8: =45.636*1.06 -> 48.374 | G8: 12 | H8: 6*0.6*0.45 | I8: =6*0.6*0.45*12 -> 19.440 | J8: 336根
A9: 7 | C9: 镀锌槽钢 | D9: 20#A | E9: 吨 | F9: =1.902*1.06 -> 2.016 | G9: 1 | H9: 6*0.34*0.45 | I9: =6*0.34*0.45 -> 0.918 | J9: 14根
A10: 8 | C10: 镀锌钢管 | D10: DN20 | E10: 吨 | F10: =1.317*18 -> 23.706 | G10: 18 | H10: 6*0.36*0.32 | I10: =6*0.36*0.32*18 -> 12.442 | J10: 2286根
A11: 9 | C11: 镀锌钢管（散装） | D11: DN20 | E11: 吨 | F11: =0.145*1.06 -> 0.154 | G11: 待打包 | H11: 按长方体估算6*0.027*0.027 | I11: =6*0.027*0.027*14 -> 0.061 | J11: 14根
A12: 10 | C12: 镀锌钢管 | D12: DN100 | E12: 吨 | F12: 11.800 | G12: 9 | H12: 6*0.6*0.52 | I12: =6*0.6*0.52*9 -> 16.848 | J12: 171根
A13: 11 | C13: 镀锌钢管（散装） | D13: DN100 | E13: 吨 | F13: 0.414 | G13: 待打包 | H13: 按长方体估算6*0.114*0.114 | I13: =6*0.114*0.114*6 -> 0.468 | J13: 6根
A14: 12 | C14: 镀锌角钢 | D14: 40*4 | E14: 吨 | F14: 4.159 | G14: 1 | H14: 6*420*320 | I14: =6*0.42*0.32 -> 0.806 | J14: 270根
A15: 13 | C15: 镀锌角钢 | D15: 50*5 | E15: 吨 | F15: 5.994 | G15: 1 | H15: 6*0.5*0.32 | I15: =6*0.5*0.32 -> 0.960 | J15: 250根
A16: 14 | C16: 镀锌角钢 | D16: 50*5 | E16: 吨 | G16: 1 | H16: 6*0.39*0.1 | I16: =6*0.39*0.1 -> 0.234
A17: 15 | C17: 槽钢 | D17: 20A | E17: 吨 | F17: 0.407 | G17: 待打包 | J17: 3根
A18: 16 | C18: 槽钢 | D18: 16A | E18: 吨 | F18: 0.310 | J18: 3根
A19: 17 | C19: 槽钢 | D19: 12# | E19: 吨 | F19: 0.362 | J19: 5根
A20: 18 | C20: 角钢 | D20: L120*120*12 | E20: 吨 | F20: 0.817 | J20: 3根/每根12米
A21: 19 | C21: 角钢 | D21: L75*75*8 | E21: 吨 | F21: 0.271 | J21: 5根
A22: 20 | C22: 角钢 | D22: L50*50*5 | E22: 吨 | F22: 0.566 | J22: 30根
A23: 21 | C23: 圆钢 | D23: φ8mm | E23: 吨 | F23: 0.007 | J23: 2根/9米每根
A24: 22 | C24: 圆钢 | D24: φ10mm | E24: 吨 | F24: 0.006 | J24: 1根/9米每根
A25: 23 | C25: 圆钢 | D25: φ16mm | E25: 吨 | F25: 0.057 | J25: 4根/9米每根
A26: 24 | C26: 钢板 | D26: δ=10mm | E26: 吨 | F26: 1.256 | G26: 1 | H26: 8*2*0.01 | I26: =8*2*0.01 -> 0.160 | J26: 16平
A27: 25 | C27: 钢板 | D27: δ=12mm | E27: 吨 | F27: 1.507 | G27: 1 | H27: 8*2*0.012 | I27: =8*2*0.012 -> 0.192 | J27: 16平
A28: 26 | C28: 镀锌扁钢 | D28: 40*4 | E28: 吨 | F28: 1.684 | G28: 1 | H28: 6*0.38*0.26 | I28: =6*0.38*0.26 -> 0.593 | J28: 210根
A29: 27 | C29: 镀锌钢管 | D29: DN65 | E29: 吨 | F29: 1.563 | G29: 1 | H29: 6*0.6*0.47 | I29: =6*0.6*0.47 -> 1.692 | J29: 37根
A30: 28 | C30: 镀锌钢管 | D30: DN65 | E30: 吨 | F30: 1.436 | G30: 1 | H30: 6*0.54*0.5 | I30: =6*0.54*0.5 -> 1.620 | J30: 34根
A31: 29 | C31: 镀锌钢管 | D31: DN50 | E31: 吨 | F31: 3.786 | G31: 2 | H31: 6*0.56*0.52 | I31: =6*0.56*0.52*2 -> 3.494 | J31: 122根
A32: 30 | C32: 镀锌钢管（散装） | D32: DN50 | E32: 吨 | F32: =4.656-3.786 -> 0.87 | G32: 待打包 | H32: 按长方体估算6*0.06*0.06 | I32: =6*0.06*0.06*29 -> 0.626 | J32: 29根
A33: 31 | C33: 镀锌钢管 | D33: DN40 | E33: 吨 | F33: =4.469 -> 4.469 | G33: 3 | H33: 6*0.45*0.42 | I33: =6*0.45*0.42*3 -> 3.402 | J33: 183根
A34: 32 | C34: 镀锌钢管（散装） | D34: DN40 | E34: 吨 | F34: 0.244 | G34: 待打包 | H34: 6*0.048*0.048 | I34: =6*0.048*0.048*10 -> 0.138 | J34: 10根
A35: 33 | C35: 镀锌钢管 | D35: DN32 | E35: 吨 | F35: 9.058 | G35: 5 | H35: 6*0.49*0.43 | I35: =6*0.49*0.43*5 -> 6.321 | J35: 455根
A36: 34 | C36: 镀锌钢管（散装） | D36: DN32 | E36: 吨 | F36: 0.199 | G36: 待打包 | H36: 按长方体估算6*0.042*0.042 | I36: =6*0.042*0.042*12 -> 0.127 | J36: 12根
A37: 35 | C37: 镀锌钢管 | D37: DN25 | E37: 吨 | F37: 9.804 | G37: 7 | H37: 6*0.39*0.36 | I37: =6*0.39*0.36*7 -> 5.897 | J37: 637根
A38: 36 | C38: 镀锌钢管（散装） | D38: DN25 | E38: 吨 | F38: 0.508 | G38: 待打包 | H38: 按长方体估算6*0.034*0.034 | I38: =6*0.034*0.034*33 -> 0.229 | J38: 33根
A39: 37 | C39: 焊接钢管 | D39: φ219.0×6.0(DN200) | E39: 吨 | F39: 6.619 | G39: 5 | H39: 6*0.68*0.65 | I39: =6*0.68*0.65*5 -> 13.260 | J39: 35根
A40: 38 | C40: 焊接钢管（散装） | D40: φ219.0×6.0(DN200) | E40: 吨 | F40: 1.135 | G40: 待打包 | H40: 按长方体估算6*0.219*0.219 | I40: =6*0.219*0.219*6 -> 1.727 | J40: 6根
A41: 39 | C41: 焊接钢管 | D41: φ165.0×4.50(DN150) | E41: 吨 | F41: 4.061 | G41: 2 | H41: 6*0.87*0.77 | I41: =6*0.87*0.77*2 -> 8.039 | J41: 38根
A42: 40 | C42: 焊接钢管（散装） | D42: φ165.0×4.50(DN150) | E42: 吨 | F42: 0.748 | G42: 待打包 | H42: 按长方体估算6*0.165*0.165 | I42: =6*0.165*0.165*7 -> 1.143 | J42: 7根
A43: 41 | C43: 焊接钢管 | D43: φ114.0×4.00(DN100) | E43: 吨 | F43: 6.184 | G43: 5 | H43: 6*0.55*0.54 | I43: =6*0.55*0.54*5 -> 8.910 | J43: 95根
A44: 42 | C44: 焊接钢管 | D44: φ88.5×4.00(DN80) | E44: 吨 | F44: 1.2 | G44: 1 | H44: 6*0.62*0.5 | I44: =6*0.62*0.5 -> 1.860 | J44: 24根
A45: 43 | C45: 焊接钢管 | D45: φ75.5×3.75(DN65) | E45: 吨 | F45: 0.796 | G45: 1 | H45: 6*0.62*0.38 | I45: =6*0.62*0.38 -> 1.414 | J45: 20根
A46: 44 | C46: 焊接钢管 | D46: φ60.0×3.50(DN50) | E46: 吨 | F46: 1.756 | G46: 1 | H46: 6*0.56*0.49 | I46: =6*0.56*0.49 -> 1.646 | J46: 61根
A47: 45 | C47: 焊接钢管 | D47: φ48.0×3.50(DN40) | E47: 吨 | F47: 1.382 | G47: 1 | H47: 6*0.55*0.48 | I47: =6*0.55*0.48 -> 1.584 | J47: 60根
A48: 46 | C48: 焊接钢管 | D48: φ42.3×3.25(DN32) | E48: 吨 | F48: 0.331 | G48: 1 | H48: 6*0.26*0.25 | I48: =6*0.26*0.25 -> 0.390 | J48: 18根
A49: 47 | C49: 焊接钢管（散装） | D49: φ33.5×3.25(DN25) | E49: 吨 | F49: 0.532 | G49: 1 | H49: 按长方体估算6*0.034*0.034 | I49: =6*0.034*0.034*37 -> 0.257 | J49: 37根
A50: 48 | C50: 焊接钢管 | D50: φ26.8×2.75(DN20) | E50: 吨 | F50: 0.863 | G50: 1 | H50: 6*0.6*0.32 | I50: =6*0.6*0.32 -> 1.152 | J50: 89根
C51: 合计 | F51: =SUM(F3:F50) -> 198.689 | G51: =SUM(G3:G50) -> 91 | I51: =SUM(I3:I50) -> 127.675

Sheet 3
A1: 3包货物清单
A2: 材料名称 | B2: 规格型号 | C2: 单位 | D2: 数量 | E2: 件数 | F2: 净重(kg) | G2: 毛重(kg) | H2: 长*宽*高（m） | J2: 体积（m³）
A3: 山型卡 | C3: 只 | D3: 10000 | E3: 2 | F3: 1105 | G3: 1115 | H3: 50*(0.4*0.6*0.1) | J3: 1.2
A4: 扎丝 | C4: Kg | D4: 16800 | E4: 16 | F4: 16800 | G4: 16800 | J4: 9.6
A5: 扎丝 | B5: L=250mm、22# | C5: Kg | D5: 800
A6: 扎丝 | B6: L=300mm、22# | C6: Kg | D6: 4000
A7: 扎丝 | B7: L=350mm、22# | C7: Kg | D7: 8000
A8: 扎丝 | B8: L=400mm、22# | C8: Kg | D8: 4000
A9: 手拉葫芦 | B9: 35T，主链4米，手链12米 | C9: 个 | D9: 2
A10: 墙体开槽机 | C10: 台 | D10: 2 | E10: 1 | F10: 7 | G10: 7.5 | H10: 0.6*0.39*0.3 | J10: =0.6*0.39*0.3 -> 0.0702
A11: 钢丝绳 | C11: 吨 | D11: 5.85 | E11: 8 | F11: 5850 | G11: 5850 | H11: / | J11: 8
A12: 钢丝吊绳 | B12: φ16、7*19股、L=4M，两头需人工穿环 | C12: 根 | D12: 40
A13: 钢丝吊绳 | B13: φ20、7*19股、L=6M两头需人工穿环 | C13: 根 | D13: 60
A14: 钢丝吊绳 | B14: φ20、7*19股、L=8M两头需人工穿环 | C14: 根 | D14: 60
A15: 钢丝吊绳 | B15: φ20、7*19股、L=12M两头需人工穿环 | C15: 根 | D15: 60
A16: 钢丝吊绳 | B16: φ22、7*19股、L=8M两头需人工穿环 | C16: 根 | D16: 40
A17: 钢丝吊绳 | B17: φ22、7*19股、L=12M两头需人工穿环 | C17: 根 | D17: 40
A18: 钢丝吊绳 | B18: φ24、7*19股、L=8M两头需人工穿环 | C18: 根 | D18: 20
A19: 钢丝吊绳 | B19: φ24、7*19股、L=12M两头需人工穿环 | C19: 根 | D19: 20
A21: 电动扳手 | B21: P1B-DV-22C，交流型 | C21: 套 | D21: 2 | E21: 2 | F21: 9 | G21: 9
A22: 开口扳手 | B22: 12*14 | C22: 把 | D22: 6
A23: 开口扳手 | B23: 12*14 | C23: 把 | D23: 6
A24: 安全绳 | C24: 根 | D24: 8
A25: 安全绳 | B25: 10mm*30m | C25: 根 | D25: 4
A26: 安全绳 | B26: 16mm*30m | C26: 根 | D26: 4
A27: 耐酸砖 | C27: 块 | D27: 39850 | E27: 117 | F27: 173714 | G27: =SUM(G28:G31) -> 175290 | J27: 106
A28: 耐酸砖 | B28: 230mm*113mm*65mm | C28: 块 | D28: 8448 | E28: 22 | F28: 32714 | G28: 33000 | H28: 22*（1*1*0.8） | I28: 1*1*0.8 | J28: 17.6
A29: 耐酸砖 | B29: 230mm*113mm*65mm | C29: 块 | D29: 10552 | E29: 28 | F29: 40600 | G29: 40950 | H29: 28*（1*1*0.8） | I29: 1*1*0.8 | J29: 22.4
A30: 耐酸砖 | B30: 300mm*300mm*30mm | C30: 块 | D30: 16850 | E30: 63 | F30: 96000 | G30: 96900 | H30: 63*（1*1*0.94） | I30: 1*1*0.94 | J30: 62
A31: 耐酸砖 | B31: 230mm*113mm*20mm | C31: 块 | D31: 4000 | E31: 4 | F31: 4400 | G31: 4440 | H31: 4*（1*1*0.94） | I31: 1*1*0.94 | J31: 4
A32: 氩弧焊帽 | C32: 只 | D32: 10
A33: 铜挂锁 | B33: 63mm | C33: 把 | D33: 6
A34: 美工刀片 | B34: 18*100mm | C34: 盒 | D34: 3
A35: 铁丝 | B35: 10#/12#/14# | C35: 千克 | D35: 95 | F35: 95 | G35: =SUM(G36:G38) -> 95
A36: 铁丝 | B36: 10# | C36: 千克 | D36: 60 | F36: 60 | G36: 60
A37: 铁丝 | B37: 12# | C37: 千克 | D37: 30 | F37: 30 | G37: 30
A38: 铁丝 | B38: 14# | C38: 千克 | D38: 5 | F38: 5 | G38: 5
A39: 切割片 | B39: φ100/184*2.2*20*24T | C39: 片 | D39: 2404 | G39: =SUM(G40:G41) -> 54.05
A40: 切割片 | B40: φ100 | C40: 片 | D40: 2400 | F40: 52.8 | G40: 52.8
A41: 圆锯片 | B41: 184*2.2*20*24T丨木工锯片 | C41: 片 | D41: 4 | F41: 1.25 | G41: 1.25
A42: 地拖插座 | B42: S305 | C42: 只 | D42: 15 | F42: 2.65
A43: 石笔 | C43: 盒 | D43: 20
A44: 弹簧秤 | B44: 10KG | C44: 个 | D44: 1
A45: 氩弧焊把 | B45: 300A（含线） | C45: 把 | D45: 10
A46: 坞针 | B46: φ2.5 | C46: 盒 | D46: 40
A47: 坞针夹 | B47: φ2.5 | C47: 只 | D47: 100
A48: 弯管器 | B48: 6mm/8mm/10mm/12mm/14mm/16mm/18mm/22mm | C48: 套 | D48: 8 | F48: 19.9
A49: 弯管器 | B49: 6mm | C49: 套 | D49: 1 | F49: 19.9
A50: 弯管器 | B50: 8mm | C50: 套 | D50: 1
A51: 弯管器 | B51: 10mm | C51: 套 | D51: 1
A52: 弯管器 | B52: 12mm | C52: 套 | D52: 1
A53: 弯管器 | B53: 14mm | C53: 套 | D53: 1
A54: 弯管器 | B54: 16mm | C54: 套 | D54: 1
A55: 弯管器 | B55: 18mm | C55: 套 | D55: 1
A56: 弯管器 | B56: 22mm | C56: 套 | D56: 1
E62: =SUM(E3:E27) -> 146 | F62: 197485 | G62: 199071.5 | H62: =SUM(H3:H27) -> 0 | I62: 0 | J62: 124.87
